[Event "FIDE WY-U16 Olympiad 2022"]
[Site "Nakhchivan"]
[Date "2022.10.02"]
[Round "1.35"]
[White "Mohamed Mostafa, Omar"]
[Black "Francs, Marats"]
[Result "0-1"]
[ECO "A05"]
[WhiteElo "1503"]
[BlackElo "1956"]
[Annotator "TA"]
[PlyCount "156"]
[EventDate "2022.10.02"]
[EventType "team-tourn"]
[EventCountry "AZE"]
[SourceTitle "playchess.com"]
[Source "ChessBase"]
[SourceQuality "1"]
[WhiteTeam "Egypt"]
[BlackTeam "Latvia"]
[WhiteTeamCountry "EGY"]
[BlackTeamCountry "LAT"]
[TimeControl "40/5400+30:1800+30"]

{[%evp 12,156,16,10,10,13,49,50,53,55,60,39,50,27,27,25,21,35,37,36,66,-99,-110,-107,-105,-93,-68,-83,0,0,0,-25,0,0,0,0,0,0,8,0,0,0,2,9,26,0,4,0,0,-14,0,0,-11,-41,-45,-12,-32,-98,-98,-98,-98,-98,-98,-204,-204,-204,-204,-362,-358,-354,-352,-424,-354,-354,-354,-354,-352,-354,-347,-1905,-1905,-1875,-1803,-1862,-1847,-1829,-1775,-1712,-1641,-1579,-1087,-1593,-1553,-1532,-1538,-1501,-1418,-1381,-1374,-1265,-1232,-29951,-29953,-29956,-29944,-29963,-12841,-12279,-9770,-4662,-441,-29956,-29956,-29956,-29958,-29956,-203,-29965,-29966,-29967,-29966,-29968,-29969,-29971,-29972,-29978,-29979,-29986,-29987,-29987,-29987,-29988,-29989,-29989,-29987,-29988,-29988,-29989,-29987,-29993,-29986,-29987,-29988,-29988,-29989,-29990,-29990]} 1. Nf3 {[%emt 0:00:26]} Nf6 {[%emt 0:00:14]} 2. g3 {[%emt 0:00:17]} c6 {[%emt 0:00:46]} 3. Bg2 {[%emt 0:00:10]} d5 {[%emt 0:00:09]} 4. O-O {[%emt 0:00:49]} Bf5 {[%emt 0:00:32]} 5. d3 {[%emt 0:00:54]} e6 {[%emt 0:00:26]} 6. Nbd2 {[%emt 0:00:25]} Be7 {[%emt 0:00:28]} 7. Re1 {[%emt 0:00:49]} O-O {[%emt 0:02:03] A07: Réti Opening: New York and Capablanca Systems.} 8. Nh4 {[%emt 0:03:42]} Bg6 {[%emt 0:00:12]} 9. Nxg6 {[%emt 0:02:03]} hxg6 {[%emt 0:00:19] White is slightly better.} 10. e4 {[%emt 0:00:19] [#]} Qc7 $146 {[%emt 0:01:07]} ({Predecessor:} 10... dxe4 11. Nxe4 Nbd7 12. Qe2 Nxe4 13. dxe4 Qb6 14. Be3 Bc5 15. Rad1 Rfd8 16. Bxc5 Nxc5 {1-0 (51) Noronha,N (1849)-Munari,C (1800) Porto Alegre 2015}) 11. e5 {[%emt 0:10:50]} Nfd7 {[%emt 0:00:10]} 12. d4 {[%emt 0:00:40]} c5 {[%emt 0:01:21]} 13. c3 {[%emt 0:00:23]} Nc6 {[%emt 0:00:09]} 14. Nf3 {[%emt 0:00:24]} Rac8 {[%emt 0:00:31]} 15. Bf4 {[%emt 0:03:40]} Qb6 {[%emt 0:04:14]} 16. Qd2 {[%emt 0:01:00]} (16. c4 $14 {keeps the upper hand.}) 16... cxd4 $17 {[%emt 0:00:16]} 17. Nxd4 {[%emt 0:06:13]} Nxd4 {[%emt 0:01:25]} 18. Be3 {[%emt 0:03:30][%mdl 64] [#] Pin} Bc5 $1 {[%emt 0:02:41] White must now prevent ...Nc6.} 19. Bxd4 {[%emt 0:02:37]} Nb8 {[%emt 0:02:18]} (19... Bxd4 $17 20. cxd4 Rc4) 20. Bxc5 $11 {[%emt 0:05:43]} Qxc5 {[%emt 0:00:34]} 21. Qe3 {[%emt 0:06:49]} b6 {[%emt 0:02:37]} 22. h4 {[%emt 0:05:48]} Qxe3 {[%emt 0:02:06]} 23. Rxe3 {[%emt 0:00:33]} Nc6 {[%emt 0:00:17]} 24. Bf1 {[%emt 0:04:28]} Rfd8 {[%emt 0:00:20]} 25. Ba6 {[%emt 0:00:35]} Rc7 {[%emt 0:00:22]} 26. Rd1 {[%emt 0:03:23]} Nb8 {[%emt 0:01:04]} 27. Bf1 {[%emt 0:02:44][%cal Oc3c4]} Kf8 {[%emt 0:00:39]} 28. Kg2 {[%emt 0:06:02]} Ke7 {[%emt 0:00:16]} 29. Kf3 {[%emt 0:03:12]} Nd7 {[%emt 0:01:08]} 30. Rd4 {[%emt 0:04:50]} f6 {[%emt 0:03:37]} 31. exf6+ {[%emt 0:01:08]} gxf6 {[%emt 0:01:01]} 32. Rxd5 {[%emt 0:04:36]} Ne5+ {[%emt 0:00:38]} 33. Rdxe5 {[%emt 0:00:01]} fxe5 {[%emt 0:00:11]} 34. Rxe5 $15 {[%emt 0:00:12][%mdl 4096] Endgame KRR-KRB} ({White should play} 34. Bd3 $15) 34... Rd2 $17 {[%emt 0:00:10] Black converts the advantage convincingly.} 35. Re2 {[%emt 0:01:01]} Rcd7 {[%emt 0:00:09]} 36. b4 {[%emt 0:11:43]} R7d3+ {[%emt 0:00:35]} 37. Kg2 {[%emt 0:00:19]} (37. Re3 $17 {is the only way for White.} Rxe3+ 38. Kxe3 Rxa2 39. b5) 37... Rxe2 $19 {[%emt 0:00:16]} 38. Bxe2 {[%emt 0:00:02]} Rxc3 {[%emt 0:00:15] KR-KB} 39. g4 $2 {[%emt 0:03:37]} (39. Bd1 {was called for.}) 39... Kf7 {[%emt 0:00:32]} 40. a4 {[%emt 0:01:07]} Ra3 {[%emt 0:00:16]} 41. Bd1 {[%emt 0:30:09]} Rd3 {[%emt 0:30:35]} 42. Be2 {[%emt 0:01:20]} Rd4 {[%emt 0:00:03]} 43. b5 {[%emt 0:00:18]} Rxa4 44. Kg3 {[%emt 0:00:29]} e5 {[%emt 0:00:29]} 45. h5 $2 {[%emt 0:00:00]} (45. f3) 45... gxh5 {[%emt 0:00:00]} 46. gxh5 {[%emt 0:00:00]} Kg7 {[%emt 0:00:00]} 47. Kh3 {[%emt 0:00:00]} Kh6 {[%emt 0:00:00]} 48. Kg3 {[%emt 0:00:00]} Kg5 {[%emt 0:00:00]} 49. Kg2 {[%emt 0:00:00]} Ra2 {[%emt 0:00:00]} 50. Bc4 {[%emt 0:00:00]} Rc2 {[%emt 0:00:00]} 51. Bf7 {[%emt 0:00:00]} Rc5 {[%emt 0:00:00]} 52. Be8 {[%emt 0:00:00]} a5 {[%emt 0:00:00] ( -> ...a4)} 53. bxa6 {[%emt 0:00:00]} Ra5 {[%emt 0:00:00]} 54. Kf3 {[%emt 0:00:00]} Rxa6 {[%emt 0:00:00]} 55. Ke4 {[%emt 0:00:00]} Kf6 {[%emt 0:00:00]} 56. f4 {[%emt 0:00:00]} exf4 {[%emt 0:00:00]} 57. Kxf4 {[%emt 0:00:00]} Ra1 {[%emt 0:00:00]} 58. Bb5 {[%emt 0:00:00]} Rc1 {[%emt 0:00:00]} (58... Ra5 $142 59. Be2 Re5 60. Ba6 Rxh5 61. Ke4 b5 62. Kd4 Ke7 63. Kc3 Kd6 64. Kb4 Kc6 65. Kb3 Kc7 66. Kb4 Kb6 67. Bc8 Re5 68. Bh3 Re4+ 69. Kc3 b4+ 70. Kc2 Kc5 71. Bf5 Re3 72. Kb2 Kc4 73. Kc2 b3+ 74. Kd2 Kd4 75. Bb1 Re6 76. Kd1 Kc3 77. Bf5 Rf6 78. Bh7 Rh6 79. Bf5 Rh2 80. Bg6 b2 81. Be4 Rd2+ 82. Ke1 {[#]} Rd3 $1 {[%mdl 512]} 83. Kf2 b1=Q 84. Bxd3 Kxd3 85. Kf3 Qb4 86. Kg2 Qg4+ 87. Kh1 Ke3 88. Kh2 Kf2 89. Kh1 Qh5#) 59. Ke4 {[%emt 0:00:00]} Kg5 {[%emt 0:00:00]} 60. Be2 {[%emt 0:00:00]} Re1 {[%emt 0:00:00]} (60... Rc2 $142 61. Kd3 Rc8) 61. Kd3 {[%emt 0:00:00]} (61. Ke3 $19) 61... Kf4 {[%emt 0:00:00]} 62. Kd2 {[%emt 0:00:00]} Rh1 {[%emt 0:00:00]} 63. Kc3 {[%emt 0:00:00]} Ke5 $2 {[%emt 0:00:00]} (63... Ke3 {mates} 64. Bg4 Rh2 65. Bd1 Rh4 66. Bb3 Rxh5 67. Bf7 Rf5 68. Bg8 Rc5+ 69. Kb4 Kd4 70. Be6 Rc1 71. Bf5 Rf1 72. Bh7 Rf2 73. Kb3 Kc5 74. Bg8 Rf3+ 75. Kc2 b5 76. Be6 Kb4 77. Bg4 Re3 78. Bh5 Ka3 79. Kd2 Rg3 80. Be8 b4 81. Bd7 b3 82. Bf5 Ka2 83. Be6 Ka1 84. Ke2 b2 85. Kf2 Rg5 86. Bh3 b1=Q 87. Bg2 Qa2+ 88. Kf3 Qxg2+ 89. Kf4 Kb2 90. Ke3 Kc3 91. Kf4 Qg3+ 92. Ke4 Re5#) 64. Kd3 $2 {[%emt 0:01:22]} (64. Kc4 $19) 64... Rh4 {[%emt 0:00:00] Black mates.} 65. Kc3 {[%emt 0:02:46]} Kd5 {[%emt 0:00:00]} 66. Bf3+ {[%emt 0:00:58]} Kc5 {[%emt 0:00:00]} 67. Kd3 {[%emt 0:03:11]} b5 {[%emt 0:00:00]} 68. Ke3 {[%emt 0:00:14]} b4 {[%emt 0:00:00]} 69. Kf2 {[%emt 0:00:41]} b3 {[%emt 0:00:00]} 70. Kg3 {[%emt 0:00:01]} b2 {[%emt 0:00:00]} 71. Kxh4 {[%emt 0:00:11]} b1=Q {[%emt 0:00:00]} 72. Kg5 {[%emt 0:01:58]} Qb2 {[%emt 0:00:00]} 73. h6 {[%emt 0:04:30]} Qh8 {[%emt 0:00:00]} 74. Kg6 {[%emt 0:01:24]} Kd6 {[%emt 0:00:00]} 75. h7 {[%emt 0:00:17]} Ke7 {[%emt 0:00:00]} 76. Bd5 {[%emt 0:00:56]} Qf6+ {[%emt 0:00:00]} 77. Kh5 {[%emt 0:00:02]} Kd6 {[%emt 0:00:00]} 78. Bg8 {[%emt 0:00:25]} Qg7 {[%emt 0:00:00] Weighted Error Value: White=0.54/Black=0.36} 0-1

[Event "FIDE WY-U16 Olympiad 2022"]
[Site "Nakhchivan"]
[Date "2022.10.03"]
[Round "2.4"]
[White "Karimi, Setayesh"]
[Black "Kayis, Gulcan Sena"]
[Result "1/2-1/2"]
[ECO "D43"]
[WhiteElo "1844"]
[BlackElo "1702"]
[Annotator "NA RC COMBH"]
[PlyCount "55"]
[EventDate "2022.10.02"]
[EventType "team-tourn"]
[EventCountry "AZE"]
[SourceTitle "playchess.com"]
[Source "ChessBase"]
[SourceQuality "1"]
[WhiteTeam "Iran"]
[BlackTeam "Turkey"]
[WhiteTeamCountry "IRI"]
[BlackTeamCountry "TUR"]
[TimeControl "40/5400+30:1800+30"]

1. d4 {[%emt 0:01:25]} d5 {[%emt 0:00:15]} 2. c4 {[%emt 0:00:06]} c6 {[%emt 0:00:07]} 3. Nf3 {[%emt 0:00:11]} Nf6 {[%emt 0:00:27]} 4. Nc3 {[%emt 0:00:15]} e6 {[%emt 0:01:13]} 5. cxd5 {[%emt 0:00:21]} exd5 {[%emt 0:00:26]} 6. Bg5 {[%emt 0:00:03]} Be7 {[%emt 0:02:59]} 7. Qc2 {[%emt 0:00:34]} Nbd7 {[%emt 0:03:04]} 8. e3 {[%emt 0:01:17]} O-O {[%emt 0:00:26]} 9. Bd3 {[%emt 0:00:03]} Re8 {[%emt 0:01:33]} 10. O-O {[%emt 0:04:14]} Nf8 {[%emt 0:01:27]} 11. h3 {[%emt 0:05:48]} Ng6 {[%emt 0:11:05]} 12. Nd2 {[%emt 0:05:38]} Nh5 {[%emt 0:06:48]} 13. Bxe7 {[%emt 0:02:43]} Qxe7 {[%emt 0:00:31]} 14. Rab1 {[%emt 0:14:17]} Qg5 {[%emt 0:13:25]} 15. Nf3 {[%emt 0:03:09]} Qf6 {[%emt 0:02:55]} 16. Qd1 {[%emt 0:03:39]} Qd6 {[%emt 0:11:12]} 17. b4 {[%emt 0:03:56]} Nf6 {[%emt 0:04:11]} 18. b5 {[%emt 0:12:22]} Bd7 {[%emt 0:09:48]} 19. bxc6 {[%emt 0:03:29]} Bxc6 {[%emt 0:00:43]} 20. Qb3 {[%emt 0:03:39]} Ne4 {[%emt 0:03:05]} 21. Bxe4 {[%emt 0:08:37]} dxe4 {[%emt 0:00:20]} 22. Nd2 {[%emt 0:00:03]} Nh4 {[%emt 0:03:55]} 23. Kh1 {[%emt 0:04:48]} Nxg2 {[%emt 0:03:43]} 24. Kxg2 {[%emt 0:02:49]} Qg6+ {[%emt 0:01:17]} 25. Kh2 {[%emt 0:01:19]} Qd6+ {[%emt 0:00:08]} 26. Kg2 {[%emt 0:01:31]} Qg6+ {[%emt 0:02:33]} 27. Kh2 {[%emt 0:02:17]} Qd6+ {[%emt 0:02:34]} 28. Kg2 {[%emt 0:00:09]} 1/2-1/2

[Event "FIDE WY-U16 Olympiad 2022"]
[Site "Nakhchivan"]
[Date "2022.10.03"]
[Round "2.4"]
[White "Alagoz, Zumra Meryem"]
[Black "Maklakova, Naomi"]
[Result "1-0"]
[ECO "C50"]
[WhiteElo "1830"]
[BlackElo "1635"]
[Annotator "NA RC COMBH"]
[PlyCount "61"]
[EventDate "2022.10.02"]
[EventType "team-tourn"]
[EventCountry "AZE"]
[SourceTitle "playchess.com"]
[Source "ChessBase"]
[SourceQuality "1"]
[WhiteTeam "Turkey"]
[BlackTeam "Latvia"]
[WhiteTeamCountry "TUR"]
[BlackTeamCountry "LAT"]
[TimeControl "40/5400+30:1800+30"]

1. e4 {[%emt 0:00:06]} e5 {[%emt 0:00:32]} 2. Nf3 {[%emt 0:00:04]} Nc6 {[%emt 0:00:16]} 3. Bc4 {[%emt 0:00:05]} Nf6 {[%emt 0:00:15]} 4. d3 {[%emt 0:00:04]} Bc5 {[%emt 0:00:11]} 5. c3 {[%emt 0:00:48]} d6 {[%emt 0:00:11]} 6. h3 {[%emt 0:04:18]} a6 {[%emt 0:00:52]} 7. Bb3 {[%emt 0:00:05]} h6 {[%emt 0:01:03]} 8. Nbd2 {[%emt 0:01:27]} O-O {[%emt 0:01:19]} 9. O-O {[%emt 0:00:08]} Be6 {[%emt 0:01:00]} 10. Re1 {[%emt 0:00:13]} Ba7 {[%emt 0:10:23]} 11. Nf1 {[%emt 0:01:20]} Bxb3 {[%emt 0:02:48]} 12. axb3 {[%emt 0:00:21]} Re8 {[%emt 0:06:54]} 13. N3h2 {[%emt 0:01:59]} d5 {[%emt 0:07:27]} 14. Qf3 {[%emt 0:00:16]} Qd6 {[%emt 0:08:01]} 15. g4 {[%emt 0:16:48]} Rad8 {[%emt 0:10:17]} 16. g5 {[%emt 0:08:51]} hxg5 {[%emt 0:00:14]} 17. Bxg5 {[%emt 0:00:06]} dxe4 {[%emt 0:01:21]} 18. dxe4 {[%emt 0:00:00]} Nh7 {[%emt 0:00:05]} 19. Bxd8 {[%emt 0:09:15]} Qxd8 {[%emt 0:00:27]} 20. Rad1 {[%emt 0:03:25]} Qe7 {[%emt 0:00:13]} 21. Ne3 {[%emt 0:05:15]} Qc5 {[%emt 0:20:13]} 22. h4 {[%emt 0:10:59]} Ne7 {[%emt 0:02:57]} 23. Nhg4 {[%emt 0:08:03]} Ng6 {[%emt 0:01:43]} 24. Nf5 {[%emt 0:03:27]} Nf4 {[%emt 0:01:38]} 25. Kh1 {[%emt 0:06:21]} Kh8 {[%emt 0:04:12]} 26. Rd7 {[%emt 0:03:09]} Kg8 {[%emt 0:03:02]} 27. Rg1 {[%emt 0:03:26]} Ng6 {[%emt 0:01:35]} 28. Ngh6+ {[%emt 0:00:50]} Kh8 {[%emt 0:00:37]} 29. Nxf7+ {[%emt 0:00:27]} Kg8 {[%emt 0:00:11]} 30. N5h6+ {[%emt 0:00:29]} Kf8 {[%emt 0:01:05]} 31. Nxe5+ {[%emt 0:00:12]} 1-0

[Event "FIDE WY-U16 Olympiad 2022"]
[Site "Nakhchivan"]
[Date "2022.10.03"]
[Round "2.5"]
[White "Levitan, Caleb Levi"]
[Black "Nemsadze, Daviti"]
[Result "0-1"]
[ECO "A45"]
[WhiteElo "2063"]
[BlackElo "2012"]
[Annotator "TA"]
[PlyCount "184"]
[EventDate "2022.10.02"]
[EventType "team-tourn"]
[EventCountry "AZE"]
[TimeControl "40/5400+30:1800+30"]

{[%evp 11,184,0,18,11,21,8,14,12,18,24,17,-4,0,-25,-16,-15,-17,-23,0,0,15,0,2,0,0,0,-2,-7,0,0,-5,-14,0,-15,0,0,-8,-7,-10,-15,0,0,0,0,0,8,8,0,7,-17,-13,-18,0,0,0,-7,0,0,0,0,10,0,0,0,4,-34,-26,-29,0,-6,0,0,34,0,0,-10,-25,-872,-831,-968,-967,-770,-939,-890,-890,-737,-297,-296,-297,-336,-335,-334,-298,-329,-321,-351,-337,-357,-329,-329,-364,-364,-364,-336,-336,-281,-271,-676,-658,-634,-629,-714,-707,-687,-679,-599,0,-650,-587,-470,-442,-747,-396,-1101,-384,-380,-249,-258,-258,-258,-202,-202,-188,-173,-173,-547,-514,-420,-8,-8,-8,-29972,-29973,-29975,-29976,-29976,-29977,-29977,-29978,-29978,-29979,-29980,-29981,-29982,-29983,-29983,-29984,-29985,-29986,-29986,-29986,-29986,-29986,-29987,-29986,-29986,-29987,-29987,-29988,-29988,-29989,-29989,-29989,-29990,-29991]} 1. d4 {[%emt 0:00:09]} Nf6 {[%emt 0:00:15]} 2. Bf4 {[%emt 0:00:03]} e6 {[%emt 0:00:11]} 3. e3 {[%emt 0:00:20]} c5 {[%emt 0:00:18]} 4. c3 {[%emt 0:00:20]} d5 {[%emt 0:00:08]} 5. Nd2 {[%emt 0:00:34]} Nc6 {[%emt 0:00:15]} 6. Ngf3 {[%emt 0:00:24]} cxd4 {[%emt 0:01:34] 6...Nh5 is a critical line.} 7. exd4 {[%emt 0:00:34] D02: 1 d4 d5 2 Nf3 sidelines, including 2...Nf6 3 g3 and 2...Nf6 3 Bf4.} Nh5 {[%emt 0:01:07]} 8. Be3 {[%emt 0:07:44]} Bd6 {[%emt 0:00:39] Against Ne5} 9. Ne5 {[%emt 0:02:02] The position is equal.} Nf6 {[%emt 0:00:22][%cal Bh5f6,Bf6e4,Be4f2][%mdl 32]} 10. f4 {[%emt 0:00:26]} Qb6 {[%emt 0:00:13] [#]} 11. Nd3 $146 {[%emt 0:02:18]} ({Predecessor:} 11. Qb3 Ng8 12. Bd3 Nge7 13. g3 f6 14. Nef3 Bd7 15. O-O O-O 16. Qc2 Nf5 17. Rae1 {1-0 (34) Aronian,L (2772)-Aditya,M (2459) Warsaw 2021}) 11... Ne7 {[%emt 0:04:58]} 12. Be2 {[%emt 0:01:49]} Nf5 {[%emt 0:01:16]} 13. Bf2 {[%emt 0:00:13]} Ne4 {[%emt 0:00:58]} 14. O-O {[%emt 0:01:11]} Nxf2 {[%emt 0:00:53]} 15. Rxf2 {[%emt 0:00:31]} f6 {[%emt 0:03:33]} 16. Nb3 {[%emt 0:04:53]} O-O {[%emt 0:03:04]} 17. Qd2 {[%emt 0:02:28]} Qc7 {[%emt 0:05:28]} 18. Re1 {[%emt 0:04:47]} b6 {[%emt 0:01:41]} 19. Bf3 {[%emt 0:06:32]} Bd7 {[%emt 0:01:27]} 20. g3 {[%emt 0:01:40]} Rae8 {[%emt 0:14:50]} 21. Rfe2 {[%emt 0:02:29]} Kh8 {[%emt 0:07:27]} 22. Na1 {[%emt 0:05:14][%cal Bb3a1,Ba1c2,Bc2e3][%mdl 32]} Qc8 {[%emt 0:18:20]} 23. Nc2 {[%emt 0:16:12]} Bb8 {[%emt 0:05:22]} 24. Ne3 {[%emt 0:03:34] And now Nxf5 would win.} Nd6 {[%emt 0:00:13]} 25. Bg2 {[%emt 0:05:16][%cal Of4f5]} Ne4 {[%emt 0:00:56]} 26. Qc2 {[%emt 0:02:04]} Bb5 {[%emt 0:17:59]} 27. a4 {[%emt 0:02:10]} Bxd3 {[%emt 0:00:42]} 28. Qxd3 {[%emt 0:00:02]} f5 {[%emt 0:00:11]} 29. c4 {[%emt 0:07:54]} Qd7 {[%emt 0:01:56]} 30. b3 {[%emt 0:00:38]} Rd8 {[%emt 0:02:18]} 31. Rd1 {[%emt 0:00:47]} Qb7 {[%emt 0:01:35]} 32. Rc2 {[%emt 0:03:27]} Bd6 {[%emt 0:01:05]} 33. Rdc1 {[%emt 0:04:33]} Ba3 {[%emt 0:00:02]} 34. Rd1 {[%emt 0:02:47]} Bb4 {[%emt 0:00:39]} 35. cxd5 {[%emt 0:01:52]} exd5 {[%emt 0:00:04]} 36. Rdc1 {[%emt 0:01:52]} (36. Qb5 {seems wilder.} a5 37. Nxf5 Nc3 38. Rxc3 Bxc3 39. Ne3) 36... Ba3 {[%emt 0:01:43]} 37. Ra1 {[%emt 0:03:21]} ({Don't play} 37. Rc7 Qb8 38. R1c2 Nc5 39. R7xc5 bxc5 $15) 37... Be7 {[%emt 0:00:06]} 38. Bxe4 {[%emt 0:01:48]} dxe4 {[%emt 0:00:03]} 39. Qd2 {[%emt 0:00:10]} Rd7 {[%emt 0:00:50]} 40. Rd1 $1 {[%emt 0:01:09]} a5 {[%emt 0:00:29]} 41. Qe2 {[%emt 0:31:45]} Rfd8 {[%emt 0:31:48]} 42. Nxf5 {[%emt 0:00:00]} Bf6 {[%emt 0:00:00]} 43. g4 {[%emt 0:00:00]} g6 {[%emt 0:00:00]} 44. g5 $2 {[%emt 0:00:00][%mdl 8192]} (44. Ng3 $11) 44... gxf5 $19 {[%emt 0:00:00]} 45. gxf6 {[%emt 0:00:00]} Rg8+ {[%emt 0:00:00]} 46. Kf1 {[%emt 0:00:00]} e3 $1 {[%emt 0:00:00][%cal Rb7h1]} 47. d5 Rxd5 {[%cal Od5d2]} 48. f7 {[%emt 0:00:00]} Qxf7 {[%emt 0:00:00]} (48... Rxd1+ $142 49. Qxd1 Qh1+ 50. Ke2 Qg2+ 51. Kxe3 Qe4+ 52. Kf2 Qxf4+ 53. Qf3 Qxh2+ 54. Ke3 f4+ 55. Qxf4 Rg3+ 56. Qf3 Qh6+ 57. Kf2 Qh2+ 58. Ke3 Qh6+ 59. Kf2 Qh2+ 60. Ke3) 49. Rdc1 {[%emt 0:00:00]} Qe6 {[%emt 0:00:00] Prevents Rc8.} 50. Qc4 {[%emt 0:01:23]} Qd6 {[%emt 0:00:00] Threatens to win with ...Rc5.} 51. Qc3+ {[%emt 0:03:00]} Rd4 {[%emt 0:00:00]} 52. Qxe3 {[%emt 0:00:09]} Rxf4+ {[%emt 0:00:00]} 53. Rf2 {[%emt 0:00:09]} Rxf2+ {[%emt 0:00:00]} 54. Kxf2 {[%emt 0:00:51]} Qxh2+ {[%emt 0:00:00][%mdl 4096] Endgame KQR-KQR} 55. Kf1 {[%emt 0:00:09] Threatening mate with Qd4+.} Qg2+ {[%emt 0:00:00]} ({Wrong is} 55... h6 $2 56. Qc3+ Kh7 57. Qc7+ Qxc7 58. Rxc7+ Rg7 59. Rc6 $19) 56. Ke1 {[%emt 0:00:01]} Qg1+ {[%emt 0:00:00]} ({Inferior is} 56... Rd8 57. Qe5+ Qg7 58. Qxg7+ Kxg7 59. Rc6 $17) 57. Ke2 {[%emt 0:00:16]} Qxe3+ {[%emt 0:00:00]} 58. Kxe3 {[%emt 0:00:02] KR-KR} Rg4 {[%emt 0:00:00]} 59. Rf1 $2 {[%emt 0:00:07]} (59. Rc8+ Kg7 60. Rc7+ Kh6 61. Rc6+ Rg6 62. Rc7) 59... Rg3+ {[%emt 0:00:00]} 60. Kf4 {[%emt 0:02:29]} Rxb3 {[%emt 0:00:00]} 61. Kxf5 {[%emt 0:00:13]} Kg7 {[%emt 0:00:00]} 62. Rg1+ {[%emt 0:00:32]} Kf7 {[%emt 0:00:04]} 63. Rh1 {[%emt 0:00:10]} Kg7 {[%emt 0:06:49]} 64. Rg1+ {[%emt 0:00:06] [#]} Kf8 $1 {[%emt 0:00:13]} 65. Rh1 {[%emt 0:01:34]} Rb4 {[%emt 0:00:14]} 66. Rxh7 {[%emt 0:01:13]} (66. Rh6 $142 Kg7 67. Rd6) 66... Rxa4 {[%emt 0:00:02]} 67. Kf6 $2 {[%emt 0:00:09]} (67. Rh1) 67... Rf4+ {[%emt 0:00:02]} 68. Ke5 {[%emt 0:00:10]} Rb4 {[%emt 0:00:04]} 69. Kf6 {[%emt 0:01:17][%cal Rh7h8]} Ke8 {[%emt 0:00:03]} 70. Ke6 {[%emt 0:00:04][%cal Rh7h8]} Kd8 {[%emt 0:00:02]} 71. Kd6 {[%emt 0:00:07][%cal Rh7h8]} Kc8 {[%emt 0:00:02] aiming for ...Rc4.} 72. Kc6 {[%emt 0:00:18][%cal Rh7h8]} Kb8 {[%emt 0:00:03]} 73. Rg7 $2 {[%emt 0:01:21]} (73. Rb7+ Ka8 74. Rh7) 73... a4 {[%emt 0:00:08]} 74. Rb7+ {[%emt 0:01:50] [#]} Ka8 $2 {[%emt 0:00:05]} ({Black should try} 74... Kc8 $1 $19 {( -> ...Rc4+)} 75. Ra7 Kd8) 75. Rg7 {[%emt 0:00:11]} Rb3 {[%emt 0:00:49] Strongly threatening ...a3.} (75... Rb1 $5 76. Rg4 $8 Rc1+ 77. Kxb6 Rb1+ 78. Kc5 Ra1 $11) 76. Rg8+ $2 {[%emt 0:00:21][%mdl 8192] White is on the road to losing.} (76. Kc7 $11) 76... Ka7 {[%emt 0:00:04] Black mates.} 77. Rg7+ {[%emt 0:00:05]} Ka6 {[%emt 0:00:03]} 78. Rg8 {[%emt 0:00:08]} Rc3+ {[%emt 0:00:01]} 79. Kd5 {[%emt 0:00:06]} Ka5 {[%emt 0:00:10]} 80. Kd4 {[%emt 0:00:06]} Rc7 {[%emt 0:00:02]} 81. Rg1 {[%emt 0:00:14]} a3 {[%emt 0:00:02][%cal Ba4a3,Ba3a2][%mdl 32]} 82. Kd3 {[%emt 0:00:48]} b5 {[%emt 0:00:03]} 83. Rg2 {[%emt 0:00:12]} Ka4 {[%emt 0:00:04]} 84. Rg1 {[%emt 0:00:06]} a2 {[%emt 0:00:02]} 85. Rg8 {[%emt 0:00:27]} Kb3 {[%emt 0:00:05]} 86. Rg1 {[%emt 0:00:12]} Rd7+ {[%emt 0:00:01]} 87. Ke3 {[%emt 0:00:10]} Kb2 {[%emt 0:00:04]} 88. Rg2+ {[%emt 0:00:04]} Ka3 {[%emt 0:00:02]} 89. Rg1 {[%emt 0:00:06]} b4 {[%emt 0:00:02][%cal Bb5b4,Bb4b3][%mdl 32]} 90. Ke4 {[%emt 0:00:59]} b3 {[%emt 0:00:03]} 91. Ke5 {[%emt 0:00:13]} Rd2 {[%emt 0:00:04]} 92. Ke6 {[%emt 0:00:09]} Kb2 {[%emt 0:00:05] Weighted Error Value: White=0.29 (precise) /Black=0.19 (very precise)} 0-1